[Event "*** Titled Tuesday Blitz"]
[Site "Chess.com"]
[Date "2021.02.02"]
[Round "11"]
[White "SanQui14"]
[Black "Jungle_Jaguar"]
[Result "0-1"]
[WhiteElo "2440"]
[BlackElo "2610"]
[TimeControl "180+1"]
[EndTime "12:03:51 PST"]
[Termination "Jungle_Jaguar won by resignation"]

1. d4 {[%clk 0:03:00.9]} 1... Nf6 {[%clk 0:03:00]} 2. c4 {[%clk 0:03:00.8]} 2...
e6 {[%clk 0:02:57.5]} 3. Nc3 {[%clk 0:03:00.9]} 3... Bb4 {[%clk 0:02:57]} 4. Qc2
{[%clk 0:03:01.6]} 4... c5 {[%clk 0:02:56.2]} 5. dxc5 {[%clk 0:03:01.2]} 5...
Nc6 {[%clk 0:02:55.7]} 6. a3 {[%clk 0:03:00.7]} 6... Bxc5 {[%clk 0:02:55.7]} 7.
Nf3 {[%clk 0:02:59.8]} 7... O-O {[%clk 0:02:49.3]} 8. e3 {[%clk 0:02:59.7]} 8...
d5 {[%clk 0:02:38.3]} 9. cxd5 {[%clk 0:02:58.8]} 9... exd5 {[%clk 0:02:37.5]}
10. b4 {[%clk 0:02:58]} 10... Bb6 {[%clk 0:02:30.5]} 11. Bb2 {[%clk 0:02:57.9]}
11... Bg4 {[%clk 0:02:21.7]} 12. Be2 {[%clk 0:02:58.1]} 12... Rc8 {[%clk
0:02:20.4]} 13. Qd2 {[%clk 0:02:54.8]} 13... d4 {[%clk 0:02:00.2]} 14. Nxd4
{[%clk 0:02:51]} 14... Nxd4 {[%clk 0:01:59.1]} 15. exd4 {[%clk 0:02:50.7]} 15...
Re8 {[%clk 0:01:56.8]} 16. O-O {[%clk 0:02:30.7]} 16... Bxd4 {[%clk 0:01:20.6]}
17. Bxg4 {[%clk 0:02:27.3]} 17... Nxg4 {[%clk 0:01:19.2]} 18. Rad1 {[%clk
0:02:23.2]} 18... Qc7 {[%clk 0:01:03.6]} 19. g3 {[%clk 0:01:52.6]} 19... Bxc3
{[%clk 0:01:02.1]} 20. Bxc3 {[%clk 0:01:50.9]} 20... Qxc3 {[%clk 0:01:01.9]} 21.
Qg5 {[%clk 0:01:48.4]} 21... Ne5 {[%clk 0:00:57]} 22. f4 {[%clk 0:01:47.4]}
22... Nf3+ {[%clk 0:00:55.3]} 0-1

[Event "*** Titled Tuesday Blitz"]
[Site "Chess.com"]
[Date "2021.02.02"]
[Round "11"]
[White "ajdemipopushi"]
[Black "BairaKovanova"]
[Result "0-1"]
[WhiteElo "2334"]
[BlackElo "2483"]
[TimeControl "180+1"]
[EndTime "12:04:15 PST"]
[Termination "BairaKovanova won by resignation"]

1. Nf3 {[%clk 0:03:00.9]} 1... Nf6 {[%clk 0:02:59.2]} 2. g3 {[%clk 0:03:01.3]}
2... d5 {[%clk 0:02:58]} 3. c4 {[%clk 0:03:01.2]} 3... e6 {[%clk 0:02:56.9]} 4.
Bg2 {[%clk 0:03:01.3]} 4... Be7 {[%clk 0:02:56.4]} 5. O-O {[%clk 0:03:01.5]}
5... O-O {[%clk 0:02:57]} 6. d4 {[%clk 0:03:02.2]} 6... dxc4 {[%clk 0:02:53.2]}
7. Qc2 {[%clk 0:03:02]} 7... a6 {[%clk 0:02:51.2]} 8. a4 {[%clk 0:02:58.5]} 8...
Nc6 {[%clk 0:02:36]} 9. Qxc4 {[%clk 0:02:52.9]} 9... Nb4 {[%clk 0:02:26.9]} 10.
a5 {[%clk 0:02:33.7]} 10... Bd7 {[%clk 0:02:20.9]} 11. Nc3 {[%clk 0:02:29.8]}
11... Bc6 {[%clk 0:02:19.9]} 12. Bg5 {[%clk 0:02:23.5]} 12... Nfd5 {[%clk
0:01:57.5]} 13. Bxe7 {[%clk 0:02:21.7]} 13... Qxe7 {[%clk 0:01:56.8]} 14. Ne5
{[%clk 0:02:14.9]} 14... Nxc3 {[%clk 0:01:53.1]} 15. bxc3 {[%clk 0:02:12.6]}
15... Bxg2 {[%clk 0:01:51.6]} 16. Kxg2 {[%clk 0:02:11]} 16... Nd5 {[%clk
0:01:51.4]} 17. e4 {[%clk 0:02:08]} 17... Nf6 {[%clk 0:01:49.9]} 18. f3 {[%clk
0:02:08]} 18... Rac8 {[%clk 0:01:42.4]} 19. Nd3 {[%clk 0:01:52]} 19... c5 {[%clk
0:01:40.9]} 20. Nxc5 {[%clk 0:01:43.8]} 20... Nd7 {[%clk 0:01:40.8]} 21. Rfb1
{[%clk 0:01:36.9]} 21... Nxc5 {[%clk 0:01:40.4]} 22. dxc5 {[%clk 0:01:37.2]}
22... Rxc5 {[%clk 0:01:40.8]} 23. Qb4 {[%clk 0:01:31.5]} 23... Qg5 {[%clk
0:01:33.6]} 24. f4 {[%clk 0:01:24.3]} 24... Qh5 {[%clk 0:01:33.4]} 25. Ra2
{[%clk 0:01:15.4]} 25... Rb5 {[%clk 0:01:31.8]} 0-1

[Event "*** Titled Tuesday Blitz"]
[Site "Chess.com"]
[Date "2021.02.02"]
[Round "11"]
[White "dianamirza"]
[Black "MuhittinBuker"]
[Result "1-0"]
[WhiteElo "1929"]
[BlackElo "2111"]
[TimeControl "180+1"]
[EndTime "12:04:18 PST"]
[Termination "dianamirza won by checkmate"]

1. b4 {[%clk 0:02:58]} 1... e5 {[%clk 0:02:58.1]} 2. Bb2 {[%clk 0:02:57.9]} 2...
Bxb4 {[%clk 0:02:56.8]} 3. Bxe5 {[%clk 0:02:57.9]} 3... Nf6 {[%clk 0:02:56.2]}
4. Nf3 {[%clk 0:02:55.2]} 4... d5 {[%clk 0:02:54.4]} 5. e3 {[%clk 0:02:53.7]}
5... O-O {[%clk 0:02:53.4]} 6. a3 {[%clk 0:02:53.1]} 6... Bd6 {[%clk 0:02:52.1]}
7. Bb2 {[%clk 0:02:52.1]} 7... c5 {[%clk 0:02:51.6]} 8. Be2 {[%clk 0:02:51.8]}
8... Nc6 {[%clk 0:02:51.5]} 9. O-O {[%clk 0:02:49.2]} 9... Re8 {[%clk
0:02:50.5]} 10. c4 {[%clk 0:02:35.3]} 10... Bg4 {[%clk 0:02:36.4]} 11. h3 {[%clk
0:02:34]} 11... Bh5 {[%clk 0:02:31.1]} 12. cxd5 {[%clk 0:02:27.4]} 12... Nxd5
{[%clk 0:02:29.3]} 13. Nc3 {[%clk 0:02:22.6]} 13... Bc7 {[%clk 0:02:21.8]} 14.
Qb3 {[%clk 0:02:17.9]} 14... Nb6 {[%clk 0:02:17.6]} 15. a4 {[%clk 0:02:02.8]}
15... Qd6 {[%clk 0:02:09.3]} 16. Nb5 {[%clk 0:01:53.7]} 16... Qd7 {[%clk
0:02:05]} 17. Nxc7 {[%clk 0:01:51.3]} 17... Qxc7 {[%clk 0:02:04.2]} 18. a5
{[%clk 0:01:39.5]} 18... Nd7 {[%clk 0:02:01.7]} 19. Ng5 {[%clk 0:01:02.2]} 19...
Bg6 {[%clk 0:01:57.9]} 20. f4 {[%clk 0:00:50.8]} 20... h6 {[%clk 0:01:42.1]} 21.
f5 {[%clk 0:00:47.8]} 21... Bh7 {[%clk 0:01:37.7]} 22. Qxf7+ {[%clk 0:00:45.3]}
22... Kh8 {[%clk 0:01:36.7]} 23. Qxg7# {[%clk 0:00:44]} 1-0

[Event "*** Titled Tuesday Blitz"]
[Site "Chess.com"]
[Date "2021.02.02"]
[Round "11"]
[White "PopMilan95"]
[Black "Srisshhhtea"]
[Result "1-0"]
[WhiteElo "2629"]
[BlackElo "2472"]
[TimeControl "180+1"]
[EndTime "12:04:23 PST"]
[Termination "PopMilan95 won by resignation"]

1. e4 {[%clk 0:03:00.9]} 1... c5 {[%clk 0:02:58.5]} 2. Nf3 {[%clk 0:02:59.8]}
2... d6 {[%clk 0:02:58.6]} 3. d4 {[%clk 0:02:59.4]} 3... cxd4 {[%clk 0:02:57.7]}
4. Qxd4 {[%clk 0:03:00]} 4... Nf6 {[%clk 0:02:57.2]} 5. Nc3 {[%clk 0:02:59.2]}
5... Nc6 {[%clk 0:02:57.2]} 6. Bb5 {[%clk 0:02:58.6]} 6... Bd7 {[%clk
0:02:56.3]} 7. Bxc6 {[%clk 0:02:58.8]} 7... Bxc6 {[%clk 0:02:53.5]} 8. Bg5
{[%clk 0:02:59.1]} 8... e6 {[%clk 0:02:52.1]} 9. O-O-O {[%clk 0:02:58.2]} 9...
a6 {[%clk 0:02:52]} 10. Rhe1 {[%clk 0:02:56.4]} 10... Be7 {[%clk 0:02:49.7]} 11.
Kb1 {[%clk 0:02:48]} 11... Qc7 {[%clk 0:02:46.8]} 12. Qd2 {[%clk 0:01:41.8]}
12... O-O {[%clk 0:02:40.1]} 13. Nd4 {[%clk 0:01:40]} 13... Bd7 {[%clk
0:02:35.7]} 14. f3 {[%clk 0:01:37.6]} 14... b5 {[%clk 0:02:33.2]} 15. g4 {[%clk
0:01:33.2]} 15... b4 {[%clk 0:02:27.9]} 16. Nce2 {[%clk 0:01:33.6]} 16... a5
{[%clk 0:02:26.5]} 17. Ng3 {[%clk 0:01:34.2]} 17... a4 {[%clk 0:02:17.7]} 18.
Nh5 {[%clk 0:01:34]} 18... b3 {[%clk 0:02:08.4]} 19. cxb3 {[%clk 0:01:31.9]}
19... axb3 {[%clk 0:02:05.9]} 20. Bxf6 {[%clk 0:01:14.5]} 20... bxa2+ {[%clk
0:01:24]} 21. Ka1 {[%clk 0:01:13.2]} 21... gxf6 {[%clk 0:01:18.9]} 22. Qh6
{[%clk 0:01:11.1]} 1-0

[Event "*** Titled Tuesday Blitz"]
[Site "Chess.com"]
[Date "2021.02.02"]
[Round "11"]
[White "Gerodot71"]
[Black "Aikiigm"]
[Result "0-1"]
[WhiteElo "2464"]
[BlackElo "2577"]
[TimeControl "180+1"]
[EndTime "12:04:35 PST"]
[Termination "Aikiigm won by resignation"]

1. d4 {[%clk 0:03:00.9]} 1... d5 {[%clk 0:02:30.3]} 2. c4 {[%clk 0:03:00.8]}
2... c6 {[%clk 0:02:30.7]} 3. Nf3 {[%clk 0:03:00.9]} 3... Nf6 {[%clk 0:02:30.4]}
4. Qb3 {[%clk 0:03:01.2]} 4... Qb6 {[%clk 0:02:29.7]} 5. c5 {[%clk 0:03:00.3]}
5... Qc7 {[%clk 0:02:28.3]} 6. Nc3 {[%clk 0:02:58.3]} 6... g6 {[%clk 0:02:27]}
7. g3 {[%clk 0:02:53.4]} 7... Bg7 {[%clk 0:02:27.5]} 8. Bf4 {[%clk 0:02:53.1]}
8... Qd8 {[%clk 0:02:28.2]} 9. Bg2 {[%clk 0:02:51.7]} 9... O-O {[%clk 0:02:28]}
10. O-O {[%clk 0:02:50.4]} 10... Nbd7 {[%clk 0:02:27.8]} 11. Qc2 {[%clk
0:02:46.3]} 11... Nh5 {[%clk 0:02:26.5]} 12. b4 {[%clk 0:02:40.9]} 12... Nxf4
{[%clk 0:02:24.8]} 13. gxf4 {[%clk 0:02:41.8]} 13... f6 {[%clk 0:02:23.1]} 14.
Rad1 {[%clk 0:02:28.4]} 14... Qc7 {[%clk 0:02:22.8]} 15. e3 {[%clk 0:02:20.1]}
15... e5 {[%clk 0:02:22.9]} 16. fxe5 {[%clk 0:02:20]} 16... fxe5 {[%clk
0:02:23.8]} 17. dxe5 {[%clk 0:02:20.1]} 17... Nxe5 {[%clk 0:02:24.7]} 18. Nxe5
{[%clk 0:02:20.1]} 18... Qxe5 {[%clk 0:02:25.6]} 19. Ne2 {[%clk 0:02:18]} 19...
Bg4 {[%clk 0:02:23.8]} 20. Nd4 {[%clk 0:02:15.7]} 20... Bxd1 {[%clk 0:02:23.4]}
21. Rxd1 {[%clk 0:02:13.4]} 21... Rad8 {[%clk 0:02:19.5]} 22. Rd2 {[%clk
0:02:08.8]} 22... Qe7 {[%clk 0:02:17.6]} 23. Qa4 {[%clk 0:02:06.1]} 23... a6
{[%clk 0:02:17.7]} 24. Qc2 {[%clk 0:02:03.4]} 24... Rde8 {[%clk 0:02:15.6]} 25.
a4 {[%clk 0:02:01.4]} 25... Bxd4 {[%clk 0:02:15.4]} 26. Rxd4 {[%clk 0:02:00.3]}
26... Rf6 {[%clk 0:02:15.1]} 27. b5 {[%clk 0:02:00.2]} 27... axb5 {[%clk
0:02:16]} 28. axb5 {[%clk 0:01:58.8]} 28... Ref8 {[%clk 0:02:16.1]} 29. Rd2
{[%clk 0:01:53.2]} 29... Qe5 {[%clk 0:02:16]} 30. h3 {[%clk 0:01:46.7]} 30...
Qa1+ {[%clk 0:02:14.8]} 31. Kh2 {[%clk 0:01:44.9]} 31... Qe1 {[%clk 0:02:12.2]}
32. Kg3 {[%clk 0:01:39.5]} 32... Re8 {[%clk 0:02:08.2]} 33. Re2 {[%clk
0:01:35.3]} 33... Qb4 {[%clk 0:02:03.6]} 34. bxc6 {[%clk 0:01:31.7]} 34... bxc6
{[%clk 0:02:04.5]} 35. e4 {[%clk 0:01:25.3]} 35... dxe4 {[%clk 0:01:58.9]} 36.
Bxe4 {[%clk 0:01:25.9]} 36... Kg7 {[%clk 0:01:57.7]} 37. f3 {[%clk 0:01:14.1]}
37... Re5 {[%clk 0:01:57.6]} 38. Rd2 {[%clk 0:01:06.5]} 38... Qxc5 {[%clk
0:01:57.5]} 39. Qa2 {[%clk 0:01:02.8]} 39... Qg1+ {[%clk 0:01:48.1]} 40. Rg2
{[%clk 0:01:00]} 40... Rg5+ {[%clk 0:01:48]} 0-1

[Event "*** Titled Tuesday Blitz"]
[Site "Chess.com"]
[Date "2021.02.02"]
[Round "11"]
[White "Jadeit90"]
[Black "ViktoriyaTarasova"]
[Result "0-1"]
[WhiteElo "2409"]
[BlackElo "2310"]
[TimeControl "180+1"]
[EndTime "12:04:36 PST"]
[Termination "ViktoriyaTarasova won by resignation"]

1. g3 {[%clk 0:03:00.3]} 1... Nf6 {[%clk 0:02:59.6]} 2. Bg2 {[%clk 0:03:00.5]}
2... d5 {[%clk 0:03:00.2]} 3. c4 {[%clk 0:03:00.3]} 3... c6 {[%clk 0:02:59.6]}
4. cxd5 {[%clk 0:02:58.6]} 4... cxd5 {[%clk 0:02:59.3]} 5. Nf3 {[%clk
0:02:58.1]} 5... Nc6 {[%clk 0:02:58.5]} 6. O-O {[%clk 0:02:58.4]} 6... e6 {[%clk
0:02:58.2]} 7. d3 {[%clk 0:02:58.9]} 7... Bd6 {[%clk 0:02:58.4]} 8. Nc3 {[%clk
0:02:46.5]} 8... O-O {[%clk 0:02:58.7]} 9. e4 {[%clk 0:02:46.8]} 9... a6 {[%clk
0:02:54.2]} 10. Bg5 {[%clk 0:02:39.8]} 10... d4 {[%clk 0:02:45.7]} 11. Ne2
{[%clk 0:02:38.7]} 11... e5 {[%clk 0:02:44.7]} 12. Nh4 {[%clk 0:02:31.5]} 12...
h6 {[%clk 0:02:43]} 13. Bxf6 {[%clk 0:02:31.5]} 13... Qxf6 {[%clk 0:02:41.9]}
14. Rc1 {[%clk 0:02:27.5]} 14... Be6 {[%clk 0:02:37.7]} 15. a3 {[%clk
0:02:25.2]} 15... Qe7 {[%clk 0:02:26.9]} 16. Nf5 {[%clk 0:02:23.5]} 16... Qd7
{[%clk 0:02:18.2]} 17. Nxd6 {[%clk 0:02:23.1]} 17... Qxd6 {[%clk 0:02:18.8]} 18.
f4 {[%clk 0:02:23.5]} 18... f6 {[%clk 0:02:17.8]} 19. f5 {[%clk 0:02:24]} 19...
Bf7 {[%clk 0:02:17.6]} 20. g4 {[%clk 0:02:24.1]} 20... Rfc8 {[%clk 0:02:16.8]}
21. h4 {[%clk 0:02:24.2]} 21... Na5 {[%clk 0:02:14]} 22. b4 {[%clk 0:02:20.7]}
22... Nb3 {[%clk 0:02:08.2]} 23. Rxc8+ {[%clk 0:02:20.4]} 23... Rxc8 {[%clk
0:02:08.8]} 24. g5 {[%clk 0:02:20.4]} 24... hxg5 {[%clk 0:02:07.4]} 25. hxg5
{[%clk 0:02:20.6]} 25... fxg5 {[%clk 0:02:08]} 26. Ng3 {[%clk 0:02:18.6]} 26...
Qh6 {[%clk 0:01:56.3]} 27. Kf2 {[%clk 0:02:15.7]} 27... Qh4 {[%clk 0:01:52.5]}
28. Rh1 {[%clk 0:02:09.6]} 28... Qf4+ {[%clk 0:01:49.1]} 29. Qf3 {[%clk
0:02:09.7]} 29... Rc2+ {[%clk 0:01:47.7]} 30. Ne2 {[%clk 0:02:10]} 30... Qxf3+
{[%clk 0:01:05.4]} 31. Bxf3 {[%clk 0:02:09.6]} 31... Be8 {[%clk 0:00:50.8]} 32.
Kg3 {[%clk 0:02:03]} 32... Nd2 {[%clk 0:00:48.1]} 33. Ng1 {[%clk 0:02:01.5]}
33... Rc3 {[%clk 0:00:47.1]} 34. Be2 {[%clk 0:01:59.2]} 34... Bb5 {[%clk
0:00:46]} 35. Kg4 {[%clk 0:01:57.8]} 35... Bxd3 {[%clk 0:00:45.3]} 36. Kxg5
{[%clk 0:01:56.9]} 36... Nxe4+ {[%clk 0:00:43.2]} 37. Kg6 {[%clk 0:01:55.8]}
37... Rc6+ {[%clk 0:00:41.5]} 0-1

[Event "*** Titled Tuesday Blitz"]
[Site "Chess.com"]
[Date "2021.02.02"]
[Round "11"]
[White "lamomiablanca"]
[Black "dopolian"]
[Result "0-1"]
[WhiteElo "2283"]
[BlackElo "2421"]
[TimeControl "180+1"]
[EndTime "12:05:10 PST"]
[Termination "dopolian won by resignation"]

1. d4 {[%clk 0:03:00.9]} 1... Nf6 {[%clk 0:02:59.9]} 2. Nc3 {[%clk 0:03:00.4]}
2... d5 {[%clk 0:02:58.1]} 3. e4 {[%clk 0:03:00]} 3... dxe4 {[%clk 0:02:50.6]}
4. f3 {[%clk 0:03:00.3]} 4... e5 {[%clk 0:02:36.7]} 5. dxe5 {[%clk 0:02:55.4]}
5... Qxd1+ {[%clk 0:02:36.5]} 6. Kxd1 {[%clk 0:02:47]} 6... Nfd7 {[%clk
0:02:34]} 7. f4 {[%clk 0:02:44.3]} 7... f5 {[%clk 0:02:16]} 8. Nd5 {[%clk
0:02:39.8]} 8... Kd8 {[%clk 0:02:15.8]} 9. Bc4 {[%clk 0:02:31.4]} 9... Nb6
{[%clk 0:02:10.2]} 10. Nxb6 {[%clk 0:02:28.6]} 10... axb6 {[%clk 0:02:11.1]} 11.
Be3 {[%clk 0:02:28.1]} 11... Bc5 {[%clk 0:02:09.1]} 12. Bxc5 {[%clk 0:02:14.2]}
12... bxc5 {[%clk 0:02:10]} 13. c3 {[%clk 0:02:14.3]} 13... Ke7 {[%clk
0:02:07.3]} 14. Kc2 {[%clk 0:02:13.5]} 14... Be6 {[%clk 0:01:55.8]} 15. Bxe6
{[%clk 0:02:12.2]} 15... Kxe6 {[%clk 0:01:56.7]} 16. Ne2 {[%clk 0:02:10.4]}
16... Nc6 {[%clk 0:01:51.5]} 17. a3 {[%clk 0:02:00.7]} 17... Rhd8 {[%clk
0:01:33.9]} 18. Rad1 {[%clk 0:01:59.5]} 18... Ne7 {[%clk 0:01:32.9]} 19. c4
{[%clk 0:01:57.5]} 19... Nc6 {[%clk 0:01:27.6]} 20. Kc3 {[%clk 0:01:57.5]} 20...
h6 {[%clk 0:01:14.3]} 21. h3 {[%clk 0:01:56.5]} 21... g5 {[%clk 0:01:07.5]} 22.
g3 {[%clk 0:01:55.7]} 22... Rxd1 {[%clk 0:00:58.1]} 23. Rxd1 {[%clk 0:01:55.2]}
23... b6 {[%clk 0:00:51.1]} 24. Rd5 {[%clk 0:01:43.4]} 24... Rg8 {[%clk
0:00:47.7]} 25. Kd2 {[%clk 0:01:38.6]} 25... Ne7 {[%clk 0:00:45]} 26. Nc3 {[%clk
0:01:33.5]} 26... gxf4 {[%clk 0:00:40]} 27. gxf4 {[%clk 0:01:32.6]} 27... Nxd5
{[%clk 0:00:35.3]} 28. cxd5+ {[%clk 0:01:31]} 28... Kd7 {[%clk 0:00:32.4]} 29.
Nb5 {[%clk 0:01:28.3]} 29... Rg3 {[%clk 0:00:29.8]} 30. e6+ {[%clk 0:01:26.4]}
30... Kd8 {[%clk 0:00:29.8]} 31. Na7 {[%clk 0:01:23.7]} 31... Rd3+ {[%clk
0:00:29.7]} 32. Ke2 {[%clk 0:01:23.2]} 32... Rxd5 {[%clk 0:00:30.3]} 33. Nc6+
{[%clk 0:01:22.4]} 33... Ke8 {[%clk 0:00:30.2]} 34. a4 {[%clk 0:01:18.9]} 34...
Rd6 {[%clk 0:00:29.9]} 0-1

[Event "*** Titled Tuesday Blitz"]
[Site "Chess.com"]
[Date "2021.02.02"]
[Round "11"]
[White "HElissalt"]
[Black "WilliamSchill"]
[Result "1-0"]
[WhiteElo "2258"]
[BlackElo "1989"]
[TimeControl "180+1"]
[EndTime "12:05:13 PST"]
[Termination "HElissalt won by resignation"]

1. d4 {[%clk 0:03:00.5]} 1... Nf6 {[%clk 0:02:58.7]} 2. c4 {[%clk 0:03:00]} 2...
g6 {[%clk 0:02:57.8]} 3. Nc3 {[%clk 0:03:00.2]} 3... Bg7 {[%clk 0:02:57.5]} 4.
e4 {[%clk 0:03:00.3]} 4... d6 {[%clk 0:02:57.2]} 5. Be2 {[%clk 0:03:00.7]} 5...
O-O {[%clk 0:02:56]} 6. Be3 {[%clk 0:03:01.1]} 6... c5 {[%clk 0:02:55.7]} 7.
dxc5 {[%clk 0:02:59.6]} 7... Qa5 {[%clk 0:02:55.2]} 8. Kf1 {[%clk 0:02:59.6]}
8... dxc5 {[%clk 0:02:43.1]} 9. e5 {[%clk 0:02:59.7]} 9... Nfd7 {[%clk
0:02:37.5]} 10. f4 {[%clk 0:03:00.2]} 10... Nc6 {[%clk 0:02:36.1]} 11. Nf3
{[%clk 0:02:59.9]} 11... a6 {[%clk 0:02:24.2]} 12. h4 {[%clk 0:02:51.3]} 12...
b5 {[%clk 0:02:11.5]} 13. h5 {[%clk 0:02:47.9]} 13... bxc4 {[%clk 0:01:41]} 14.
hxg6 {[%clk 0:02:46.2]} 14... hxg6 {[%clk 0:01:40.7]} 15. Bxc4 {[%clk
0:02:41.3]} 15... Nb6 {[%clk 0:01:40.4]} 16. Be2 {[%clk 0:02:34.3]} 16... Bg4
{[%clk 0:01:29.1]} 17. Ng5 {[%clk 0:02:31.3]} 17... Bxe2+ {[%clk 0:01:22.3]} 18.
Qxe2 {[%clk 0:02:30.9]} 18... Rfd8 {[%clk 0:01:01.6]} 19. Qg4 {[%clk 0:02:28]}
19... Nd5 {[%clk 0:00:43.8]} 20. Bd2 {[%clk 0:02:24.3]} 20... Nxc3 {[%clk
0:00:37.5]} 21. Bxc3 {[%clk 0:02:23.5]} 21... Qb5+ {[%clk 0:00:37.5]} 22. Kf2
{[%clk 0:02:23.7]} 22... Nd4 {[%clk 0:00:37.5]} 23. Rae1 {[%clk 0:02:17.9]}
23... Qd3 {[%clk 0:00:33.6]} 24. e6 {[%clk 0:01:37.2]} 24... Nxe6 {[%clk
0:00:18.9]} 25. Nxe6 {[%clk 0:01:33.3]} 25... Bxc3 {[%clk 0:00:16.2]} 26. bxc3
{[%clk 0:01:21.3]} 1-0

[Event "*** Titled Tuesday Blitz"]
[Site "Chess.com"]
[Date "2021.02.02"]
[Round "11"]
[White "LenkaPtacnikova"]
[Black "ohajek96"]
[Result "1-0"]
[WhiteElo "2145"]
[BlackElo "2244"]
[TimeControl "180+1"]
[EndTime "12:05:20 PST"]
[Termination "LenkaPtacnikova won by resignation"]

1. c4 {[%clk 0:03:00.9]} 1... c6 {[%clk 0:02:53]} 2. e4 {[%clk 0:02:57.9]} 2...
d5 {[%clk 0:02:51.7]} 3. exd5 {[%clk 0:02:57.9]} 3... cxd5 {[%clk 0:02:51.6]} 4.
cxd5 {[%clk 0:02:56.2]} 4... Nf6 {[%clk 0:02:51.5]} 5. Bb5+ {[%clk 0:02:51.9]}
5... Nbd7 {[%clk 0:02:50.6]} 6. Nc3 {[%clk 0:02:50.2]} 6... a6 {[%clk
0:02:44.4]} 7. Bc4 {[%clk 0:02:42.6]} 7... g6 {[%clk 0:02:18]} 8. a4 {[%clk
0:02:39.6]} 8... Bg7 {[%clk 0:02:17.3]} 9. Nf3 {[%clk 0:02:39.1]} 9... O-O
{[%clk 0:02:14.3]} 10. a5 {[%clk 0:02:37.4]} 10... Nc5 {[%clk 0:02:04.4]} 11.
O-O {[%clk 0:02:24.9]} 11... Bg4 {[%clk 0:02:02.7]} 12. h3 {[%clk 0:02:10.7]}
12... Bf5 {[%clk 0:01:53.4]} 13. d3 {[%clk 0:02:05.3]} 13... Qd7 {[%clk
0:01:39]} 14. Be3 {[%clk 0:02:02.6]} 14... Rac8 {[%clk 0:01:29.1]} 15. Re1
{[%clk 0:01:51]} 15... h5 {[%clk 0:01:04.7]} 16. Ne5 {[%clk 0:01:43.4]} 16...
Qd6 {[%clk 0:00:56.5]} 17. Bf4 {[%clk 0:01:39.1]} 17... Ncd7 {[%clk 0:00:39.7]}
18. Nxg6 {[%clk 0:01:33.8]} 18... Qb4 {[%clk 0:00:34]} 19. Nxe7+ {[%clk
0:01:31.1]} 19... Kh8 {[%clk 0:00:31.7]} 20. Nxc8 {[%clk 0:01:29.7]} 20... Rxc8
{[%clk 0:00:29.9]} 21. Qd2 {[%clk 0:01:19.2]} 21... b5 {[%clk 0:00:20.5]} 22.
Ba2 {[%clk 0:01:10]} 22... Nb6 {[%clk 0:00:21.4]} 23. axb6 {[%clk 0:01:08.4]}
1-0

[Event "*** Titled Tuesday Blitz"]
[Site "Chess.com"]
[Date "2021.02.02"]
[Round "11"]
[White "MarcoRiehle"]
[Black "eljanov"]
[Result "0-1"]
[WhiteElo "2703"]
[BlackElo "2879"]
[TimeControl "180+1"]
[EndTime "12:05:21 PST"]
[Termination "eljanov won by resignation"]

1. e4 {[%clk 0:03:00.9]} 1... c6 {[%clk 0:02:57.5]} 2. c4 {[%clk 0:03:00.2]}
2... d5 {[%clk 0:02:57.3]} 3. cxd5 {[%clk 0:03:01.1]} 3... cxd5 {[%clk
0:02:56.5]} 4. exd5 {[%clk 0:03:02]} 4... Nf6 {[%clk 0:02:56.5]} 5. Nc3 {[%clk
0:03:02.9]} 5... Nxd5 {[%clk 0:02:56.4]} 6. Nf3 {[%clk 0:03:03.2]} 6... Nc6
{[%clk 0:02:54.7]} 7. Bb5 {[%clk 0:03:02.5]} 7... g6 {[%clk 0:02:53.5]} 8. Qa4
{[%clk 0:02:53.7]} 8... Nb6 {[%clk 0:02:52.4]} 9. Bxc6+ {[%clk 0:02:51.5]} 9...
bxc6 {[%clk 0:02:53.3]} 10. Qxc6+ {[%clk 0:02:51.8]} 10... Bd7 {[%clk 0:02:52]}
11. Qe4 {[%clk 0:02:52.1]} 11... Bg7 {[%clk 0:02:50.4]} 12. O-O {[%clk
0:02:51.7]} 12... Rc8 {[%clk 0:02:48.8]} 13. Re1 {[%clk 0:02:45.3]} 13... Bc6
{[%clk 0:02:43]} 14. Qe2 {[%clk 0:02:44.7]} 14... O-O {[%clk 0:02:39.6]} 15.
Qxe7 {[%clk 0:02:42.6]} 15... Bxf3 {[%clk 0:02:29.3]} 16. Qxd8 {[%clk
0:02:38.2]} 16... Rfxd8 {[%clk 0:02:30.2]} 17. gxf3 {[%clk 0:02:36.4]} 17... Nc4
{[%clk 0:02:30.8]} 18. Re2 {[%clk 0:02:32]} 18... Ne5 {[%clk 0:02:26.6]} 19. Kg2
{[%clk 0:02:30.1]} 19... Nd3 {[%clk 0:02:27.2]} 20. Re3 {[%clk 0:02:15.1]} 20...
Bh6 {[%clk 0:02:03.1]} 21. Re7 {[%clk 0:02:03.3]} 21... a5 {[%clk 0:01:50.6]}
22. Ra7 {[%clk 0:01:37.7]} 22... Rc5 {[%clk 0:01:47.9]} 23. h4 {[%clk
0:01:28.7]} 23... Re8 {[%clk 0:01:44.8]} 24. Ne4 {[%clk 0:01:25.4]} 24... Rc6
{[%clk 0:01:37]} 25. h5 {[%clk 0:00:32.7]} 25... f5 {[%clk 0:01:30.3]} 26. Nc3
{[%clk 0:00:22.9]} 26... gxh5 {[%clk 0:01:29.8]} 27. Rxa5 {[%clk 0:00:12.6]}
27... Rg6+ {[%clk 0:01:29.4]} 28. Kh3 {[%clk 0:00:07.2]} 28... Re1 {[%clk
0:01:29.3]} 29. Ra8+ {[%clk 0:00:04.1]} 29... Kf7 {[%clk 0:01:27.8]} 30. Ra7+
{[%clk 0:00:03.8]} 30... Ke8 {[%clk 0:01:28.1]} 31. Ra8+ {[%clk 0:00:04.1]}
31... Kd7 {[%clk 0:01:28.4]} 0-1